bitfinex/quotes_ETHUSD_20220103
["timestamp","ask_amount","ask_price","bid_price","bid_amount"]
[1641225600516,0.66086,3784.1,3783.8,1.74030806]
[1641225600723,0.66086,3784.1,3782.3,0.45]
[1641225600724,3.0356316,3784.0,3783.6,1.74030806]
[1641225600924,3.3356316,3784.0,3783.6,1.74030806]
[1641225601121,1.0,3783.9,3783.6,1.74030806]
[1641225601320,2.83410068,3783.8,3783.6,1.74030806]
[1641225601519,3.13410068,3783.8,3783.6,1.74030806]
[1641225601721,12.69871639,3783.7,3783.6,1.74030806]
[1641225601920,0.6609724,3783.4,3783.0,1.77077834]
[1641225602120,0.6609724,3783.4,3782.6,0.0018231]
[1641225602321,0.3,3783.3,3782.6,0.0018231]
[1641225602976,0.66097,3783.1,3782.6,0.0018231]
[1641225603876,1.26097,3783.1,3782.6,0.0018231]
[1641225604075,1.26097,3783.1,3782.5,0.105358]
[1641225604076,2.26097,3783.1,3782.5,0.105358]
[1641225604276,0.661,3782.9,3782.6,0.0018003]
[1641225604476,0.961,3782.9,3782.6,0.0018003]
[1641225604676,1.261,3782.9,3782.6,0.0018003]
[1641225605076,6.4,3782.8,3782.3,0.25926164]
[1641225605278,2.261,3782.9,3782.3,0.25926164]
[1641225605481,1.66102,3782.7,3782.3,0.25926164]
[1641225605679,0.3,3782.6,3782.3,0.25926164]
[1641225607110,0.3,3782.6,3782.4,0.01136847]
[1641225607710,0.3,3782.6,3782.4,0.11672747]
[1641225608210,0.3,3782.6,3782.5,0.01080004]
[1641225608614,0.2963,3782.6,3782.5,0.01080004]
[1641225609215,2.8963,3782.6,3782.5,0.01080004]
[1641225609415,2.8963,3782.6,3782.5,0.02301729]
[1641225609714,2.8963,3782.6,3782.5,0.03523454]
[1641225610361,3.8963,3782.6,3782.5,0.03523454]
[1641225610762,3.8963,3782.6,3782.4,0.09059354]
[1641225610964,2.8963,3782.6,3782.4,0.09059354]
[1641225612366,2.8963,3782.6,3782.3,0.25926164]
[1641225612367,0.66103,3782.0,3781.0,1.0]
[1641225612569,2.6,3782.6,3781.0,1.0]
[1641225612570,9.5477,3782.6,3781.1,5.2889]
[1641225612767,9.5477,3782.6,3782.3,0.00113685]
[1641225613367,9.5477,3782.6,3781.6,1.22273435]
[1641225613567,2.6,3782.6,3781.6,1.22273435]
[1641225613814,2.6,3782.6,3781.7,0.00454739]
[1641225614419,0.66097,3782.5,3781.7,0.00454739]
[1641225614616,2.6,3782.6,3781.7,0.00454739]
[1641225615216,5.34545329,3782.6,3781.7,0.00454739]
[1641225615516,0.66097,3782.1,3781.7,0.00454739]
[1641225615716,0.66097,3782.1,3781.8,5.2885]
[1641225615915,2.28346,3782.2,3781.8,5.2885]
[1641225616115,0.0492,3782.1,3781.8,5.2385]
[1641225616319,0.1016,3782.1,3781.8,5.2385]
[1641225616517,0.66118,3782.0,3781.8,5.2385]
[1641225616717,0.76518,3782.0,3781.8,5.2385]
[1641225616919,0.1008,3781.9,3781.8,5.2385]
[1641225617118,1.7223613,3782.0,3781.8,5.2385]
[1641225617417,2.79352839,3781.9,3781.8,5.2385]
[1641225617663,3.3454413,3782.0,3781.8,5.2385]
[1641225617860,3.2446413,3782.0,3781.8,5.2385]
[1641225618260,3.2446413,3782.0,3780.4,0.0018003]
[1641225618261,0.66126,3781.2,3780.4,0.0018003]
[1641225618562,0.6613058,3781.0,3780.5,0.00795792]
[1641225618761,0.9052058,3781.0,3780.5,0.00795792]
[1641225618966,1.2052058,3781.0,3780.5,0.00795792]
[1641225619163,1.2052058,3781.0,3780.4,0.0018003]
[1641225619164,10.3052058,3781.0,3780.4,0.0018003]
[1641225619364,0.66145,3780.7,3780.4,0.0018003]
[1641225619565,1.0414556,3780.6,3780.4,0.0018003]
[1641225619765,3.3,3780.4,3779.5,0.0018003]
[1641225619967,3.04443167,3780.3,3779.5,0.0018003]
[1641225620164,3.74443167,3780.3,3779.6,0.00511582]
[1641225620365,4.05,3780.2,3779.5,0.0018003]
[1641225620564,3.36720038,3780.1,3779.5,0.0018003]
[1641225620766,3.6700425,3780.1,3779.5,0.0018003]
[1641225620966,0.66159,3779.2,3778.6,5.1708003]
[1641225621168,3.42064805,3779.2,3778.6,5.1708003]
[1641225621417,2.95210302,3779.1,3778.7,0.00511581]
[1641225621819,5.4,3778.8,3778.7,0.00511581]
[1641225622018,1.6,3778.8,3778.7,0.00511581]
[1641225622216,2.6,3778.8,3778.1,1.7547132]
[1641225622418,0.66183,3778.5,3778.1,1.7547132]
[1641225622717,1.22053,3778.5,3778.1,0.105359]
[1641225622922,0.48033684,3778.4,3778.1,0.105359]
[1641225623117,0.48993684,3778.4,3778.1,0.105359]
[1641225623317,0.66195,3777.9,3777.6,3.49007571]
[1641225623619,0.66194,3778.0,3777.7,0.00284212]
[1641225623818,3.1672763,3778.4,3777.7,0.00284212]
[1641225623819,0.00113684,3778.4,3777.7,0.00284212]
[1641225624621,0.66173,3778.3,3777.9,1.18073924]
[1641225625060,0.66173,3778.3,3778.0,0.00113685]
[1641225625663,0.00113684,3778.4,3778.0,0.00113685]
[1641225626063,0.00113684,3778.4,3778.0,0.10649585]
[1641225626766,0.66175,3778.3,3778.0,0.10649585]
[1641225628465,0.03273247,3778.3,3778.0,0.10649585]
[1641225629120,0.03273247,3778.3,3778.1,5.2936]
[1641225629521,6.931e-05,3778.4,3778.1,5.62550782]
[1641225629724,1.98498,3779.6,3778.3,8.83193506]
[1641225629920,0.1008,3780.5,3778.4,4.38458184]
[1641225630124,0.00454739,3779.2,3778.4,4.4167053]
[1641225630321,0.00454739,3779.2,3778.5,5.2931]
[1641225630521,0.00397897,3779.1,3778.6,2.79739917]
[1641225630722,0.00397897,3779.1,3778.7,5.32844221]
[1641225630925,0.00341054,3779.0,3778.8,0.38]
[1641225631125,0.00341054,3779.0,3778.9,14.12299064]
[1641225631331,0.66134,3780.3,3778.9,14.45299064]
[1641225631527,0.67697291,3780.8,3778.9,14.45299064]
[1641225631528,0.0032075,3780.8,3779.3,0.66125]
[1641225631725,0.0085369,3780.5,3779.4,0.38]
[1641225632124,0.00796847,3780.4,3779.4,0.41009347]
[1641225632323,0.00796847,3780.4,3779.5,1.07382457]
[1641225632591,0.00740005,3780.3,3779.6,0.41469538]
[1641225632890,0.00683163,3780.2,3779.6,0.41469538]
[1641225633296,0.0062632,3780.1,3779.6,0.41469538]
[1641225633497,0.0062632,3780.1,3779.7,3.68418262]
[1641225633697,0.0032075,3780.8,3779.7,3.68418262]
[1641225633698,0.00569478,3780.0,3779.7,5.64666123]
[1641225634096,0.40532493,3781.9,3779.8,9.83751312]
[1641225634296,0.40532493,3781.9,3779.9,3.41197854]
[1641225634297,0.06548115,3781.0,3779.9,3.41197854]
[1641225634498,0.06548115,3781.0,3780.0,5.3105]
[1641225634499,0.00397896,3780.7,3780.0,5.3105]
[1641225634698,0.00397896,3780.7,3780.1,1.1227263]
[1641225634896,0.06548115,3781.0,3780.2,5.3102]
[1641225634897,0.00341054,3780.6,3780.2,5.3102]
[1641225635296,0.01209014,3781.8,3780.2,5.3102]
[1641225635297,0.00284212,3780.5,3780.2,5.3102]
[1641225635596,0.00227369,3780.4,3780.2,5.3102]
[1641225635997,0.00170527,3780.3,3780.2,5.3102]
[1641225636197,0.00170527,3780.3,3780.2,6.3102]
[1641225636620,0.00170527,3780.3,3780.2,5.3102]
[1641225638018,0.00170527,3780.3,3780.2,6.53303689]
[1641225638419,0.00170527,3780.3,3780.2,5.3102]
[1641225639925,2.60170527,3780.3,3780.2,5.3102]
[1641225640664,2.60170527,3780.3,3780.2,0.0191]
[1641225641263,2.60170527,3780.3,3779.8,0.00113684]
[1641225641463,0.66143,3780.1,3779.8,0.00113684]
[1641225641662,0.66143,3780.1,3779.6,0.0022737]
[1641225641964,0.6614314,3780.0,3779.6,0.0022737]
[1641225642170,1.9844214,3780.0,3779.6,0.0022737]
[1641225642366,2.2844214,3780.0,3779.6,0.0022737]
[1641225643366,1.32292,3779.9,3779.6,0.0022737]
[1641225643566,1.32292,3779.9,3779.7,0.00085387]
[1641225643813,1.32291,3780.0,3779.7,0.00085387]
[1641225644018,1.32291,3780.0,3779.8,0.00113685]
[1641225645517,2.9458556,3780.0,3779.8,0.00113685]
[1641225645718,2.6458556,3780.0,3779.8,0.00113685]
[1641225646217,2.9458556,3780.0,3779.8,0.00113685]
[1641225646417,1.0,3779.9,3779.8,0.00113685]
[1641225646619,0.66147,3779.9,3779.8,0.00113685]
[1641225647421,1.3229339,3779.9,3779.8,0.00113685]
[1641225651071,5.6729339,3779.9,3779.8,0.00113685]
[1641225651528,2.5,3779.8,3779.5,0.105358]
[1641225651732,2.3229339,3779.9,3779.5,0.105358]
[1641225651926,0.6615249,3779.7,3779.6,0.00113685]
[1641225652127,1.2615249,3779.7,3778.0,0.06548123]
[1641225652326,1.32326,3779.2,3778.7,5.2922]
[1641225652529,1.9849424,3779.2,3778.7,5.29731581]
[1641225652730,1.9849424,3779.2,3778.7,5.26917221]
[1641225652927,0.66166,3778.9,3778.7,5.26917221]
[1641225654631,0.00113685,3780.2,3778.7,5.26917221]
[1641225654831,0.66147,3779.2,3778.7,5.26917221]
[1641225655082,0.66147,3779.2,3778.7,5.27817233]
[1641225655281,0.66147,3779.2,3778.7,6.54610218]
[1641225655495,0.6615,3779.1,3778.7,6.54610218]
[1641225656280,0.6615,3779.1,3778.7,5.27817233]
[1641225658489,1.98466,3779.1,3778.7,5.27817233]
[1641225660527,4.58466,3779.1,3778.7,5.27817233]
[1641225662230,2.59507914,3779.0,3778.8,0.17250585]
[1641225662668,2.59507914,3779.0,3778.9,5.25397896]
[1641225662872,2.59507914,3779.0,3778.9,0.00397896]
[1641225663272,3.2615,3779.1,3778.9,0.00397896]
[1641225663870,3.2615,3779.1,3779.0,0.17250585]
[1641225664072,2.6,3779.1,3779.0,0.17250585]
[1641225664275,2.6,3779.1,3779.0,0.17591639]
[1641225665272,5.19047698,3779.1,3779.0,0.17591639]
[1641225665672,5.22121691,3779.1,3779.0,0.17591639]
[1641225666073,2.63073993,3779.1,3779.0,0.17591639]
[1641225666317,2.63073993,3779.1,3779.0,0.28127539]
[1641225667319,5.22203297,3779.1,3779.0,0.28127539]
[1641225668026,2.63073993,3779.1,3779.0,0.28127539]
[1641225674825,2.63073993,3779.1,3779.0,6.23127539]
[1641225675021,2.63073993,3779.1,3779.0,6.61127539]
[1641225675220,2.63073993,3779.1,3779.0,11.93177539]
[1641225675926,1.32276,3780.2,3779.1,0.34996007]
[1641225676125,4.96362129,3780.4,3779.6,0.66127]
[1641225676126,2.97916129,3780.4,3779.6,0.66127]
[1641225676323,0.00284212,3780.1,3779.7,0.33]
[1641225676727,0.0022737,3780.0,3779.8,5.3194]
[1641225677025,2.97916129,3780.4,3779.9,0.38]
[1641225677226,2.97916129,3780.4,3780.3,1.40451169]
[1641225677426,2.97916129,3780.4,3780.3,1.78451169]
[1641225677682,2.60772072,3780.7,3780.3,1.78451169]
[1641225677883,2.67345777,3780.7,3780.3,1.78451169]
[1641225678084,0.00511582,3780.5,3780.3,1.78451169]
[1641225678285,0.00511582,3780.5,3780.3,0.485359]
[1641225678486,2.67345777,3780.7,3780.3,0.485359]
[1641225678487,0.00454739,3780.4,3780.3,0.485359]
[1641225679285,0.00454739,3780.4,3780.3,5.804059]
[1641225680287,0.00454739,3780.4,3780.3,6.97365276]
[1641225680992,2.60454739,3780.4,3780.3,6.97365276]
[1641225681188,0.22123552,3781.4,3780.4,8.8043]
[1641225681427,4.60052944,3781.7,3780.5,8.701229]
[1641225681628,4.60052944,3781.7,3780.9,0.5949389]
[1641225681926,4.60052944,3781.7,3781.0,6.03391493]
[1641225682126,4.60052944,3781.7,3781.1,1.0]
[1641225682328,2.56752502,3781.3,3781.2,5.6974]
[1641225682527,2.56752502,3781.3,3781.2,7.7527024]
[1641225682726,1.21862502,3781.3,3781.2,10.6027024]
[1641225682927,0.00795793,3781.8,3781.3,8.8]
[1641225683127,0.03072062,3781.7,3781.4,6.6971]
[1641225683329,0.1038449,3781.7,3781.4,8.2177501]
[1641225683534,0.00682108,3781.6,3781.4,8.8786401]
[1641225683931,0.00625266,3781.5,3781.4,12.15671703]
[1641225684131,0.00625266,3781.5,3781.4,12.81757703]
[1641225684331,0.0030302,3782.3,3781.5,0.03953864]
[1641225684531,0.0030302,3782.3,3781.9,4.753]
[1641225684732,0.0030302,3782.3,3782.0,5.72817995]
[1641225684933,0.0030302,3782.3,3782.0,6.73153783]
[1641225685194,1.62136815,3783.1,3782.0,6.73153783]
[1641225685195,1.62136815,3783.1,3782.1,0.66350946]
[1641225685397,1.62136815,3783.1,3782.3,1.32141]
[1641225685596,0.0018127,3783.3,3782.5,0.66071]
[1641225685597,0.00175793,3782.9,3782.5,0.66071]
[1641225685796,0.00175793,3782.9,3782.6,6.290139]
[1641225686001,0.03762102,3783.0,3782.6,6.590139]
[1641225686403,0.03762102,3783.0,3782.7,1.66071]
[1641225686604,0.03762102,3783.0,3782.8,5.6952]
[1641225687207,4.05905095,3785.2,3784.7,1.30311978]
[1641225687407,2.92014637,3785.2,3784.8,2.6]
[1641225687606,2.92014637,3785.2,3784.7,1.30311978]
[1641225688005,3.56623397,3785.4,3784.8,0.38]
[1641225688207,3.56623397,3785.4,3784.9,1.29110604]
[1641225688406,5.41206794,3785.7,3784.9,1.29110604]
[1641225688407,0.01421058,3785.3,3784.9,1.29110604]
[1641225688607,0.01421058,3785.3,3785.1,1.98103]
[1641225688836,0.29284438,3786.0,3785.2,9.18]
[1641225689033,0.29284438,3786.0,3785.4,0.594275]
[1641225689239,0.29284438,3786.0,3785.5,0.68]
[1641225689436,0.29284438,3786.0,3785.8,4.753]
[1641225689635,0.29284438,3786.0,3785.9,11.7909]
[1641225689838,6.9718127,3786.9,3786.0,5.6]
[1641225690040,6.9718127,3786.9,3786.1,1.04019]
[1641225690238,0.00454739,3786.7,3786.3,0.5941591]
[1641225690437,0.00454739,3786.7,3786.4,0.38]
[1641225690638,0.0018127,3786.9,3786.5,0.38]
[1641225690639,0.00397897,3786.6,3786.5,0.38]
[1641225690838,0.00397897,3786.6,3786.5,3.08]
[1641225691039,0.00397897,3786.6,3786.5,4.25322546]
[1641225691241,0.0018127,3786.9,3786.5,4.25322546]
[1641225691448,0.0018127,3786.9,3786.5,1.55322546]
[1641225692040,0.0018127,3786.9,3786.5,2.21335546]
[1641225692241,0.0018127,3786.9,3786.6,0.66013]
[1641225692442,0.0018127,3786.9,3786.7,4.43]
[1641225692683,0.0018127,3786.9,3786.7,1.70022]
[1641225692883,0.00113684,3786.8,3786.7,1.70022]
[1641225693090,0.0018127,3786.9,3786.7,1.70022]
[1641225693289,0.0018127,3786.9,3786.7,2.2942885]
[1641225693689,0.04449339,3787.1,3786.7,2.2942885]
[1641225693889,0.04449339,3787.1,3786.9,1.32021]
[1641225694094,0.04449339,3787.1,3787.0,3.88]
[1641225694491,0.04619866,3787.1,3787.0,3.88]
[1641225695091,0.04849926,3787.1,3787.0,3.88]
[1641225695691,0.0018127,3787.8,3787.1,4.35]
[1641225695692,0.03067434,3787.2,3787.1,4.35]
[1641225695893,0.03067434,3787.2,3787.1,0.38]
[1641225696330,0.00341055,3787.7,3787.3,0.65997]
[1641225696537,0.00341055,3787.7,3787.6,1.13202214]
[1641225696738,0.0018127,3787.8,3787.6,1.13202214]
[1641225697537,0.9928,3788.1,3787.7,4.0]
[1641225697738,0.9928,3788.1,3787.7,0.65991]
[1641225697940,0.00511582,3788.0,3787.9,0.65991]
[1641225698340,0.00511582,3788.0,3787.9,1.03991]
[1641225698742,0.9928,3788.1,3788.0,8.8]
[1641225698945,0.9928,3788.1,3788.0,14.4879]
[1641225699145,0.9928,3788.1,3788.0,15.51957064]
[1641225699347,0.0018127,3788.7,3788.3,0.65976]
[1641225699546,0.0018127,3788.7,3788.5,1.31952]
[1641225699746,0.0018127,3788.7,3788.6,8.23]
[1641225699945,1.0018127,3788.7,3788.6,3.88]
[1641225700174,1.00579166,3788.7,3788.6,3.88]
[1641225700374,1.00579166,3788.7,3788.6,0.9]
[1641225700775,1.00579166,3788.7,3788.2,0.0650911]
[1641225700975,3.0395211,3789.2,3788.2,0.0650911]
[1641225701178,0.0150911,3789.3,3788.3,0.00227369]
[1641225701378,1.0,3788.4,3788.3,0.00227369]
[1641225702177,1.0,3788.4,3788.3,1.28053126]
[1641225702980,0.03066199,3788.7,3788.4,8.35]
[1641225703185,7.91e-06,3789.7,3789.0,0.65965]
[1641225703382,3.8638,3790.1,3789.1,1.73491857]
[1641225703580,0.00170527,3789.5,3789.2,5.34235395]
[1641225703858,0.0018127,3790.5,3789.6,1.97865]
[1641225704057,0.00682108,3790.4,3789.7,1.1871432]
[1641225704258,0.00511581,3790.4,3790.0,1.37423759]
[1641225704461,1.0,3790.1,3790.0,1.37423759]
[1641225704861,1.00341054,3790.1,3790.0,2.03378759]
[1641225705762,1.00341054,3790.1,3790.0,5.0135744]
[1641225705962,0.0018127,3790.5,3790.1,8.6]
[1641225706264,0.00170527,3790.4,3790.2,6.62375]
[1641225706662,0.00113685,3790.3,3790.2,6.62375]
[1641225706862,0.00113685,3790.3,3790.2,7.8106605]
[1641225707062,0.00113685,3790.3,3790.2,10.79044731]
[1641225707881,3.685e-05,3790.3,3790.2,10.79044731]
[1641225708085,0.0018127,3790.5,3790.3,8.83951278]
[1641225708281,6.21,3790.9,3790.4,5.6846]
[1641225708484,0.5,3791.6,3790.4,5.3046]
[1641225708682,0.00284211,3790.8,3790.4,5.3046]
[1641225709084,0.00227369,3790.7,3790.5,3.5]
[1641225709281,0.00227369,3790.7,3790.6,5.3043]
[1641225709487,0.3,3791.3,3790.6,5.3043]
[1641225709786,0.00227369,3790.7,3790.6,5.3043]
[1641225710186,0.0018127,3791.4,3790.7,2.97978681]
[1641225710385,0.0018127,3791.4,3790.7,6.55531466]
[1641225710386,1.12590427,3791.4,3790.7,6.55531466]
[1641225710586,2.97402227,3791.3,3790.8,0.00170527]
[1641225710788,2.82420974,3791.3,3790.8,0.00170527]
[1641225710988,0.00113685,3791.3,3790.8,0.00170527]
[1641225711186,0.00113685,3791.3,3791.1,1.78786931]
[1641225711439,2.84265036,3791.3,3791.1,1.78786931]
[1641225711636,0.00113685,3791.3,3791.1,1.78786931]
[1641225712035,2.85533077,3791.3,3791.1,1.78786931]
[1641225712236,0.00113685,3791.3,3791.1,1.78786931]
[1641225712441,2.96856116,3791.3,3791.1,1.78786931]
[1641225712634,3.26856116,3791.3,3791.1,1.78786931]
[1641225712836,0.30113685,3791.3,3791.1,1.78786931]
[1641225713040,1.00113685,3791.3,3791.1,1.78786931]
[1641225713239,1.00113685,3791.3,3790.8,0.00170527]
[1641225713240,1.00113685,3791.3,3790.9,1.78786931]
[1641225713437,0.00113685,3791.3,3790.9,1.78786931]
[1641225714838,0.00113685,3791.3,3791.1,1.78786931]
[1641225715587,0.00113685,3791.3,3791.0,4.76765612]
[1641225716489,5.58101061,3791.1,3791.0,4.76765612]
[1641225716690,9.99078695,3791.1,3790.9,1.78786931]
[1641225716890,2.85763719,3791.0,3790.9,1.78786931]
[1641225717193,1.0,3791.0,3790.9,0.00113684]
[1641225717594,1.68101061,3791.1,3790.8,0.00170527]
[1641225717793,1.68101061,3791.1,3790.9,2.97978681]
[1641225717794,0.3,3791.1,3790.9,2.97978681]
[1641225717992,0.00113685,3791.3,3790.9,2.97978681]
[1641225718393,0.00113685,3791.3,3790.8,2.98149208]
[1641225718824,0.00113685,3791.3,3790.9,0.00113684]
[1641225719431,0.00113685,3791.3,3790.8,0.00170527]
[1641225720133,0.00113685,3791.3,3790.7,0.00227369]
[1641225720732,1.19769442,3791.2,3790.7,0.00227369]
[1641225721136,2.84516983,3791.1,3790.7,0.00227369]
[1641225721436,0.38,3791.0,3790.7,0.00227369]
[1641225721731,1.68,3791.0,3790.7,0.00227369]
[1641225722335,2.33973,3791.0,3790.7,0.00227369]
[1641225722615,17.70973,3791.0,3790.7,0.00227369]
[1641225722815,2.33973,3791.0,3790.7,0.00227369]
[1641225723416,17.70973,3791.0,3790.7,0.00227369]
[1641225723616,3.78011672,3790.9,3790.7,0.00227369]
[1641225723816,4.08011672,3790.9,3790.7,0.00227369]
[1641225724016,13.00942323,3790.8,3790.7,0.00227369]
[1641225724318,28.37942323,3790.8,3790.7,0.00227369]
[1641225724917,19.57942323,3790.8,3790.7,0.00227369]
[1641225725116,20.57942323,3790.8,3790.7,0.00227369]
[1641225725320,20.57942323,3790.8,3790.6,5.3043]
[1641225725517,3.73562882,3790.7,3790.6,5.3043]
[1641225725915,4.73562882,3790.7,3790.6,5.3043]
[1641225726934,1.6,3790.7,3790.6,5.3043]
[1641225727138,3.56682319,3790.7,3790.6,5.3043]
[1641225727638,4.56682319,3790.7,3790.6,5.3043]
[1641225729239,4.56682319,3790.7,3790.6,0.02592]
[1641225729842,4.56682319,3790.7,3790.2,0.06495447]
[1641225729843,8.95,3790.6,3790.2,0.06495447]
[1641225730104,15.38240865,3790.4,3790.2,0.06495447]
[1641225730309,9.95768237,3790.3,3788.8,0.0193445]
[1641225730612,10.25768237,3790.3,3788.9,0.00795793]
[1641225730805,1.0,3790.2,3788.9,0.00795793]
[1641225731005,1.55914165,3789.5,3788.9,0.00795793]
[1641225731605,0.3,3789.5,3788.9,0.00795793]
[1641225732008,0.65985,3789.7,3788.9,0.00795793]
[1641225732208,0.3,3789.6,3788.9,0.00795793]
[1641225732808,0.65983,3790.0,3788.9,0.00795793]
[1641225732809,2.6,3789.5,3788.9,0.00795793]
[1641225733010,2.9,3789.5,3788.9,0.00795793]
[1641225733611,2.9,3789.5,3788.9,0.60173403]
[1641225734052,2.9,3789.5,3789.0,0.00738951]
[1641225734554,2.9,3789.5,3789.0,1.19484491]
[1641225734951,2.9,3789.5,3789.1,0.60054569]
[1641225735352,2.9,3789.5,3789.2,0.00625266]
[1641225735552,2.6,3789.5,3789.4,1.169506]
[1641225735952,2.6,3789.5,3789.4,1.17462182]
[1641225736554,2.356,3789.5,3789.4,0.00511582]
[1641225736954,2.356,3789.5,3789.3,0.00568424]
[1641225737590,2.656,3789.5,3789.3,0.00568424]
[1641225737791,2.656,3789.5,3789.1,0.00682109]
[1641225737990,3.90244738,3789.5,3789.1,0.00682109]
[1641225738197,2.656,3789.5,3789.1,0.00682109]
[1641225739296,1.40273226,3789.4,3789.1,0.00682109]
[1641225740095,1.0,3789.3,3789.1,0.00682109]
[1641225740496,1.40273226,3789.4,3789.1,0.00682109]
[1641225740698,1.40273226,3789.4,3789.2,2.98069929]
[1641225740901,0.6599,3789.3,3789.2,2.98069929]
[1641225741196,4.4099,3789.3,3789.2,2.98069929]
[1641225741440,7.33006122,3789.3,3789.2,2.98069929]
[1641225741638,3.58006122,3789.3,3789.2,2.98069929]
[1641225742042,0.6599,3789.3,3789.1,2.98069929]
[1641225743644,0.6599,3789.3,3789.1,1.53600134]
[1641225744248,1.00119181,3789.2,3789.1,1.53600134]
[1641225744446,1.30119181,3789.2,3788.9,0.01319539]
[1641225744649,1.30119181,3789.2,3789.1,0.00682109]
[1641225745889,4.13592464,3789.2,3789.1,0.00682109]
[1641225746095,1.30119181,3789.2,3789.1,0.00682109]
[1641225746592,0.3,3789.2,3789.1,0.00682109]
[1641225747194,3.19321648,3789.2,3789.1,0.00682109]
[1641225747498,3.49321648,3789.2,3789.1,0.00682109]
[1641225747693,18.56321648,3789.2,3789.1,0.00682109]
[1641225747895,19.86321648,3789.2,3789.1,0.00682109]
[1641225748095,25.3884725,3789.1,3788.9,1.648e-05]
[1641225748296,3.00975344,3789.0,3788.9,1.648e-05]
[1641225748699,3.00975344,3789.0,3788.4,0.01509261]
[1641225748700,8.8,3788.9,3788.4,0.01509261]
[1641225748946,3.30915793,3788.8,3788.4,0.01509261]
[1641225749147,3.60915793,3788.8,3788.5,0.0022737]
[1641225749747,3.60915793,3788.8,3788.3,0.00341054]
[1641225750346,20.29939793,3788.8,3788.3,0.00341054]
[1641225750548,0.66015,3788.7,3788.3,0.00341054]
[1641225750747,3.01312473,3788.6,3788.3,0.00341054]
[1641225751146,3.31312473,3788.6,3788.3,0.00341054]
[1641225751548,1.62027,3788.6,3788.3,0.00341054]
[1641225751747,4.52817751,3788.6,3788.3,0.00341054]
[1641225751948,1.78517338,3788.5,3788.3,0.00341054]
[1641225752151,3.11549904,3788.4,3788.3,0.00341054]
[1641225752347,4.43590904,3788.4,3788.3,0.00341054]
[1641225752590,20.77076139,3788.4,3788.3,0.00341054]
[1641225754595,5.40076139,3788.4,3788.3,0.00341054]
[1641225754799,2.0,3788.4,3788.3,0.00341054]
[1641225755000,1.0,3788.4,3788.3,0.00341054]
[1641225755198,1.0,3788.4,3788.2,0.09442061]
[1641225756739,0.00210084,3788.3,3788.2,0.09442061]
[1641225757648,1.00210084,3788.3,3788.2,0.09442061]
[1641225758044,1.30210084,3788.3,3788.2,0.09442061]
[1641225760789,4.13564585,3788.3,3788.2,0.09442061]
[1641225761089,1.30210084,3788.3,3788.2,0.09442061]
[1641225761488,15.37,3788.8,3788.2,0.09442061]
[1641225761692,0.38,3789.1,3788.2,1.21160874]
[1641225761988,2.6,3788.3,3788.2,0.09442061]
[1641225762694,21.30343497,3788.3,3788.2,0.09442061]
[1641225762892,22.75530731,3788.3,3788.2,0.09442061]
[1641225763092,23.05530731,3788.3,3788.2,0.09442061]
[1641225764857,24.05530731,3788.3,3788.2,0.09442061]
[1641225766863,21.02187234,3788.3,3788.2,0.09442061]
[1641225767897,21.02326713,3788.3,3788.2,0.09442061]
[1641225768301,19.95139479,3788.3,3788.2,0.09442061]
[1641225768904,18.57139479,3788.3,3788.2,0.09442061]
[1641225769509,18.27139479,3788.3,3788.2,0.09442061]
[1641225769706,2.60139479,3788.3,3788.2,0.09442061]
[1641225770516,2.60139479,3788.3,3788.2,3.07568649]
[1641225770711,2.60139479,3788.3,3788.2,4.16878867]
[1641225771112,2.90139479,3788.3,3788.2,4.16878867]
[1641225772353,2.90139479,3788.3,3788.2,3.07568649]
[1641225778510,2.60139479,3788.3,3788.2,3.07568649]
[1641225778709,2.60139479,3788.3,3788.2,3.73551649]
[1641225778962,0.00113684,3788.5,3788.3,8.8]
[1641225779156,0.00113684,3788.5,3788.3,9.45978]
[1641225779157,3.684e-05,3788.5,3788.3,9.45978]
[1641225779358,2.0,3789.6,3788.4,9.8]
[1641225779560,2.0,3789.6,3789.2,0.01296563]
[1641225779761,0.00568424,3789.5,3789.2,1.28786563]
[1641225779962,0.00568424,3789.5,3789.3,5.278]
[1641225780159,2.0,3790.2,3789.4,0.38]
[1641225780362,0.0001,3790.2,3789.7,0.65946]
[1641225780562,0.0001,3790.2,3790.1,1.39171906]
[1641225780767,2.49838071,3791.1,3790.1,8.199452]
[1641225780964,0.0023203,3791.7,3790.2,8.0]
[1641225781171,0.0023203,3791.7,3790.3,0.38]
[1641225781568,0.00341054,3791.6,3790.8,0.65932]
[1641225781767,0.00341054,3791.6,3791.0,1.3186645]
[1641225781965,0.00284212,3791.5,3791.4,1.34248673]
[1641225782467,0.00284212,3791.5,3791.3,0.65934]
[1641225782707,0.65934,3791.3,3790.3,0.00397896]
[1641225782909,0.65953,3791.1,3790.4,4.30022568]
[1641225783105,0.65953,3791.1,3790.5,0.00284212]
[1641225783508,16.02953,3791.1,3790.2,0.00454739]
[1641225783711,1.0594961,3790.9,3790.2,0.00454739]
[1641225784008,0.65966,3790.7,3790.2,0.00454739]
[1641225785309,15.37,3790.6,3790.2,0.00454739]
[1641225785510,0.3,3790.6,3790.2,0.00454739]
[1641225785913,0.3,3790.9,3790.2,0.00454739]
[1641225786114,0.3,3791.1,3790.2,0.00454739]
[1641225786356,0.00113685,3791.2,3790.2,0.00454739]
[1641225786560,0.00113685,3791.2,3790.5,0.6595093]
[1641225786755,0.00113685,3791.2,3790.7,1.21727543]
[1641225787156,0.00113685,3791.2,3790.8,0.00113685]
[1641225788762,15.37113685,3791.2,3790.8,0.00113685]
[1641225789162,0.3,3791.1,3790.8,0.00113685]
[1641225789361,0.30126618,3791.1,3790.8,0.00113685]
[1641225789560,15.67126618,3791.1,3790.8,0.01432598]
[1641225789761,15.67126618,3791.1,3790.8,0.01318913]
[1641225790204,0.30126618,3791.1,3790.8,0.01318913]
[1641225790402,0.00126618,3791.1,3790.9,1.32462865]
[1641225793404,0.00126618,3791.1,3790.8,0.01318913]
[1641225793603,0.30126618,3791.1,3790.8,0.01318913]
[1641225793858,2.80126618,3791.1,3790.8,0.01318913]
[1641225796051,18.17126618,3791.1,3790.8,0.01318913]
[1641225796254,18.83082618,3791.1,3790.8,0.01318913]
[1641225796451,19.13082618,3791.1,3790.8,0.01318913]
[1641225796651,2.97951058,3791.0,3790.8,0.01318913]
[1641225796852,18.83082618,3791.1,3790.8,0.01318913]
[1641225797351,3.46082618,3791.1,3790.8,0.01318913]
[1641225797594,2.80126618,3791.1,3790.8,0.01318913]
[1641225798898,2.80126618,3791.1,3790.9,0.6594361]
[1641225799299,2.50126618,3791.1,3790.9,0.6594361]